[Event "Chinese Team-ch Men 2025"]
[Site "Zhang Jiakou Hebei"]
[Date "2025.04.25"]
[Round "1.29"]
[White "Chen, Hongsen"]
[Black "Yu, Shi"]
[Result "1/2-1/2"]
[Annotator "ChessBase"]
[ECO "E12"]
[WhiteElo "2402"]
[BlackElo "1973"]
[PlyCount "63"]
[EventDate "2025.04.26"]
[EventType "team-tourn"]
[EventCountry "CHN"]
[SourceTitle "playchess.com"]
[Source "ChessBase"]
[SourceQuality "1"]
[TimeControl "5400+30"]

1. d4 {[%emt 0:00:02]} Nf6 {[%emt 0:00:06]} 2. c4 {[%emt 0:00:05]} e6 {[%emt 0:00:04]} 3. Nf3 {[%emt 0:00:05]} b6 {[%emt 0:00:05]} 4. a3 {[%emt 0:00:05]} Bb7 {[%emt 0:00:07]} 5. Nc3 {[%emt 0:00:05]} d5 {[%emt 0:00:55]} 6. Qa4+ {[%emt 0:00:07]} Nbd7 {[%emt 0:02:31]} 7. cxd5 {[%emt 0:00:13]} Nxd5 {[%emt 0:03:26]} 8. Nxd5 {[%emt 0:00:06]} Bxd5 {[%emt 0:00:07]} 9. Qc2 {[%emt 0:00:15]} c5 {[%emt 0:05:57]} 10. e4 {[%emt 0:21:16]} Bb7 {[%emt 0:02:09]} 11. Bb5 {[%emt 0:05:46]} a6 {[%emt 0:04:44]} 12. Bg5 {[%emt 0:00:46]} f6 {[%emt 0:11:53]} 13. Bxd7+ {[%emt 0:00:11]} Qxd7 {[%emt 0:00:05]} 14. Be3 {[%emt 0:00:08]} cxd4 {[%emt 0:05:25]} 15. Bxd4 {[%emt 0:07:17]} Rc8 {[%emt 0:05:08]} 16. Qe2 {[%emt 0:02:04]} b5 {[%emt 0:07:44]} 17. O-O {[%emt 0:01:20]} e5 {[%emt 0:01:30]} 18. Bc3 {[%emt 0:04:41]} Bc5 {[%emt 0:02:21]} 19. Rad1 {[%emt 0:08:57]} Qe6 {[%emt 0:03:34]} 20. Rd3 {[%emt 0:06:41]} O-O {[%emt 0:01:58]} 21. Rfd1 {[%emt 0:02:58]} Qg4 {[%emt 0:02:09]} 22. Re1 {[%emt 0:00:13]} Rfd8 {[%emt 0:02:11]} 23. h3 {[%emt 0:00:32]} Qe6 {[%emt 0:00:27]} 24. Red1 {[%emt 0:01:17]} Rxd3 {[%emt 0:01:55]} 25. Rxd3 {[%emt 0:00:08]} Qb6 {[%emt 0:05:15]} 26. b4 {[%emt 0:04:54]} Bf8 {[%emt 0:02:13]} 27. Qa2+ {[%emt 0:01:37]} Kh8 {[%emt 0:00:12]} 28. Nd2 {[%emt 0:00:44]} Qc7 {[%emt 0:03:41]} 29. Qe6 {[%emt 0:02:15]} Rd8 {[%emt 0:00:34]} 30. Rxd8 {[%emt 0:02:07]} Qxd8 {[%emt 0:00:06]} 31. f3 {[%emt 0:00:47]} Qd6 {[%emt 0:02:54]} 32. Qxd6 {[%emt 0:00:48]} 1/2-1/2

[Event "Chinese Team-ch Men 2025"]
[Site "Zhang Jiakou Hebei"]
[Date "2025.04.25"]
[Round "1.30"]
[White "Liu, Huaqi"]
[Black "Jin, Hongtao"]
[Result "1/2-1/2"]
[Annotator "ChessBase"]
[ECO "A14"]
[WhiteElo "1816"]
[BlackElo "2343"]
[PlyCount "191"]
[EventDate "2025.04.26"]
[EventType "team-tourn"]
[EventCountry "CHN"]
[SourceTitle "playchess.com"]
[Source "ChessBase"]
[SourceQuality "1"]
[TimeControl "5400+30"]

1. Nf3 {[%emt 0:00:04]} Nf6 {[%emt 0:00:16]} 2. c4 {[%emt 0:00:18]} e6 {[%emt 0:00:36]} 3. b3 {[%emt 0:00:26]} d5 {[%emt 0:01:37]} 4. Bb2 {[%emt 0:00:13]} Be7 {[%emt 0:01:36]} 5. g3 {[%emt 0:00:42]} O-O {[%emt 0:01:57]} 6. Bg2 {[%emt 0:00:12]} c5 {[%emt 0:01:44]} 7. cxd5 {[%emt 0:00:47]} Nxd5 {[%emt 0:02:22]} 8. O-O {[%emt 0:01:46]} Nc6 {[%emt 0:01:50]} 9. Nc3 {[%emt 0:04:20]} Bf6 {[%emt 0:03:43]} 10. Rc1 {[%emt 0:14:45]} b6 {[%emt 0:08:05]} 11. d4 {[%emt 0:25:50]} Nxd4 {[%emt 0:06:50]} 12. Nxd4 {[%emt 0:00:13]} Bxd4 {[%emt 0:00:22]} 13. Nxd5 {[%emt 0:00:14]} Bxb2 {[%emt 0:00:04]} 14. Rc2 {[%emt 0:00:07]} exd5 {[%emt 0:08:38]} 15. Rxb2 {[%emt 0:00:16]} Be6 {[%emt 0:10:10]} 16. Rd2 {[%emt 0:00:24]} Qg5 {[%emt 0:05:29]} 17. h4 {[%emt 0:02:37]} Qf5 {[%emt 0:06:30]} 18. Bxd5 {[%emt 0:00:31]} Rae8 {[%emt 0:00:21]} 19. Bxe6 {[%emt 0:02:17]} Rxe6 {[%emt 0:00:56]} 20. e3 {[%emt 0:01:29]} h6 {[%emt 0:04:09]} 21. Rd5 {[%emt 0:01:39]} Qe4 {[%emt 0:01:32]} 22. Qd3 {[%emt 0:00:47]} Qxd3 {[%emt 0:02:38]} 23. Rxd3 {[%emt 0:00:02]} b5 {[%emt 0:00:29]} 24. Rc1 {[%emt 0:01:37]} Rc8 {[%emt 0:00:47]} 25. Rd5 {[%emt 0:02:13]} Rec6 {[%emt 0:01:38]} 26. b4 {[%emt 0:01:58]} cxb4 {[%emt 0:06:25]} 27. Rxc6 {[%emt 0:00:07]} Rxc6 {[%emt 0:00:04]} 28. Rxb5 {[%emt 0:00:06]} Rc1+ {[%emt 0:00:24]} 29. Kg2 {[%emt 0:00:10]} Rb1 {[%emt 0:01:45]} 30. a4 {[%emt 0:20:19]} b3 {[%emt 0:01:45]} 31. a5 {[%emt 0:04:40]} a6 {[%emt 0:02:15]} 32. Rb7 {[%emt 0:02:49]} b2 {[%emt 0:01:20]} 33. Kf3 {[%emt 0:00:32]} g6 {[%emt 0:00:31]} 34. Kf4 {[%emt 0:01:57]} Kg7 {[%emt 0:01:07]} 35. Ke5 {[%emt 0:01:53]} Ra1 {[%emt 0:01:15]} 36. Rxb2 {[%emt 0:00:07]} Rxa5+ {[%emt 0:00:04]} 37. Ke4 {[%emt 0:00:39]} Rf5 {[%emt 0:01:06]} 38. g4 {[%emt 0:01:16]} Ra5 {[%emt 0:00:30]} 39. Rb6 {[%emt 0:01:07]} Ra4+ {[%emt 0:00:56]} 40. Kf3 {[%emt 0:00:02]} a5 {[%emt 0:00:52]} 41. Ra6 {[%emt 0:00:18]} Kf8 {[%emt 0:00:38]} 42. Kg3 {[%emt 0:02:05]} Ra1 {[%emt 0:00:37]} 43. f3 {[%emt 0:01:05]} a4 {[%emt 0:01:12]} 44. Kf4 {[%emt 0:00:45]} Kg7 {[%emt 0:00:19]} 45. e4 {[%emt 0:00:36]} a3 {[%emt 0:01:36]} 46. g5 {[%emt 0:02:27]} a2 {[%emt 0:01:36]} 47. Ra7 {[%emt 0:01:01]} h5 {[%emt 0:01:06]} 48. Ra8 {[%emt 0:00:28]} Kh7 {[%emt 0:00:46]} 49. Ra7 {[%emt 0:00:08]} Kg8 {[%emt 0:00:13]} 50. Ra8+ {[%emt 0:00:09]} Kg7 {[%emt 0:00:08]} 51. Ra7 {[%emt 0:00:41]} Kf8 {[%emt 0:01:12]} 52. Ra8+ {[%emt 0:02:12]} Ke7 {[%emt 0:00:36]} 53. Ra6 {[%emt 0:00:21]} Kd7 {[%emt 0:00:44]} 54. Ra7+ {[%emt 0:01:29]} Kd6 {[%emt 0:01:00]} 55. Ra5 {[%emt 0:01:10]} Ke6 {[%emt 0:05:15]} 56. Ra6+ {[%emt 0:00:10]} Ke7 {[%emt 0:00:06]} 57. Ra7+ {[%emt 0:00:05]} Kf8 {[%emt 0:00:24]} 58. Ra6 {[%emt 0:00:15]} Kg7 {[%emt 0:00:27]} 59. Ra7 {[%emt 0:00:18]} Rh1 {[%emt 0:00:55]} 60. Rxa2 {[%emt 0:00:07]} Rxh4+ {[%emt 0:00:03]} 61. Kg3 {[%emt 0:00:25]} Rh1 {[%emt 0:00:05]} 62. Kg2 {[%emt 0:00:46]} Rc1 {[%emt 0:00:31]} 63. Ra5 {[%emt 0:00:52]} Kf8 {[%emt 0:00:35]} 64. Kg3 {[%emt 0:00:24]} Rg1+ {[%emt 0:00:29]} 65. Kf2 {[%emt 0:00:11]} Rd1 {[%emt 0:00:07]} 66. Kg3 {[%emt 0:00:20]} Ke7 {[%emt 0:00:27]} 67. Ra7+ {[%emt 0:00:36]} Ke6 {[%emt 0:00:34]} 68. Ra6+ {[%emt 0:00:15]} Rd6 {[%emt 0:00:33]} 69. Ra7 {[%emt 0:00:13]} Rb6 {[%emt 0:00:46]} 70. Kf4 {[%emt 0:01:21]} Rb1 {[%emt 0:00:41]} 71. Ra6+ {[%emt 0:00:16]} Ke7 {[%emt 0:00:07]} 72. Ra7+ {[%emt 0:00:14]} Kf8 {[%emt 0:00:11]} 73. Rc7 {[%emt 0:02:06]} Rg1 {[%emt 0:00:27]} 74. Ra7 {[%emt 0:01:21]} Rg2 {[%emt 0:00:42]} 75. Ra8+ {[%emt 0:00:32]} Kg7 {[%emt 0:00:07]} 76. Ra1 {[%emt 0:00:33]} h4 {[%emt 0:02:31]} 77. Rh1 {[%emt 0:00:36]} f6 {[%emt 0:00:09]} 78. gxf6+ {[%emt 0:00:17]} Kxf6 {[%emt 0:00:01]} 79. Ke3 {[%emt 0:00:42]} Kg5 {[%emt 0:01:42]} 80. Rc1 {[%emt 0:00:36]} h3 {[%emt 0:00:58]} 81. Rc8 {[%emt 0:00:30]} Ra2 {[%emt 0:02:46]} 82. Rh8 {[%emt 0:00:13]} h2 {[%emt 0:00:04]} 83. Rh7 {[%emt 0:00:43]} Rg2 {[%emt 0:00:40]} 84. Rh8 {[%emt 0:00:27]} Rb2 {[%emt 0:01:27]} 85. Rh7 {[%emt 0:00:15]} Ra2 {[%emt 0:00:25]} 86. Rh8 {[%emt 0:00:13]} Rg2 {[%emt 0:00:35]} 87. Rh7 {[%emt 0:00:12]} Ra2 {[%emt 0:00:48]} 88. Rh8 {[%emt 0:00:11]} Rb2 {[%emt 0:00:04]} 89. Rh7 {[%emt 0:00:09]} Rg2 {[%emt 0:00:09]} 90. Rh8 {[%emt 0:00:07]} Kf6 {[%emt 0:00:42]} 91. f4 {[%emt 0:01:24]} Kg7 {[%emt 0:01:37]} 92. Kf3 {[%emt 0:00:46]} Ra2 {[%emt 0:00:17]} 93. Rh4 {[%emt 0:00:15]} Kf6 {[%emt 0:00:40]} 94. Kg3 {[%emt 0:00:25]} Re2 {[%emt 0:00:15]} 95. Rxh2 {[%emt 0:00:12]} Rxe4 {[%emt 0:00:06]} 96. Ra2 {[%emt 0:00:17]} 1/2-1/2

[Event "Chinese Team-ch Men 2025"]
[Site "Zhang Jiakou Hebei"]
[Date "2025.04.25"]
[Round "1.31"]
[White "Yang, ZiLong"]
[Black "Liu, Junyi"]
[Result "1-0"]
[Annotator "ChessBase"]
[ECO "C84"]
[WhiteElo "2337"]
[BlackElo "1714"]
[PlyCount "65"]
[EventDate "2025.04.26"]
[EventType "team-tourn"]
[EventCountry "CHN"]
[SourceTitle "playchess.com"]
[Source "ChessBase"]
[SourceQuality "1"]
[TimeControl "5400+30"]

1. e4 {[%emt 0:00:12]} e5 {[%emt 0:00:09]} 2. Nf3 {[%emt 0:00:05]} Nc6 {[%emt 0:00:04]} 3. Bb5 {[%emt 0:00:10]} a6 {[%emt 0:00:23]} 4. Ba4 {[%emt 0:00:08]} Nf6 {[%emt 0:00:09]} 5. O-O {[%emt 0:00:06]} Be7 {[%emt 0:00:00]} 6. d3 {[%emt 0:00:12]} b5 {[%emt 0:00:15]} 7. Bb3 {[%emt 0:00:03]} d6 {[%emt 0:01:02]} 8. a3 {[%emt 0:00:06]} O-O {[%emt 0:02:27]} 9. Nc3 {[%emt 0:00:08]} Bg4 {[%emt 0:00:32]} 10. Be3 {[%emt 0:00:10]} Na5 {[%emt 0:00:59]} 11. Ba2 {[%emt 0:00:11]} c5 {[%emt 0:00:16]} 12. Nd5 {[%emt 0:01:43]} Nxd5 {[%emt 0:08:37]} 13. Bxd5 {[%emt 0:01:01]} Rc8 {[%emt 0:00:21]} 14. b4 {[%emt 0:09:17]} Nc6 {[%emt 0:00:16]} 15. c3 {[%emt 0:00:04]} Qc7 {[%emt 0:16:03]} 16. h3 {[%emt 0:03:23]} Bxf3 {[%emt 0:00:35]} 17. Qxf3 {[%emt 0:00:06]} Nb8 {[%emt 0:04:23]} 18. Rfc1 {[%emt 0:02:36]} Nd7 {[%emt 0:01:59]} 19. Qe2 {[%emt 0:18:54]} Nf6 {[%emt 0:08:44]} 20. c4 {[%emt 0:01:55]} Nxd5 {[%emt 0:03:23]} 21. cxd5 {[%emt 0:00:02]} Qb8 {[%emt 0:06:10]} 22. Rc2 {[%emt 0:01:03]} Rc7 {[%emt 0:06:33]} 23. Rac1 {[%emt 0:09:16]} Rfc8 {[%emt 0:00:12]} 24. f4 {[%emt 0:01:24]} cxb4 {[%emt 0:08:40]} 25. axb4 {[%emt 0:00:12]} Qb7 {[%emt 0:09:43]} 26. fxe5 {[%emt 0:03:48]} dxe5 {[%emt 0:00:58]} 27. Bc5 {[%emt 0:00:34]} Bg5 {[%emt 0:00:58]} 28. Ra1 {[%emt 0:00:53]} f5 {[%emt 0:02:35]} 29. Rca2 {[%emt 0:01:30]} Ra8 {[%emt 0:07:42]} 30. d6 {[%emt 0:04:10]} Rf7 {[%emt 0:00:33]} 31. exf5 {[%emt 0:00:05]} Rxf5 {[%emt 0:00:47]} 32. Qe4 {[%emt 0:00:03]} Qc8 {[%emt 0:02:34]} 33. d7 {[%emt 0:00:09]} 1-0

[Event "Chinese Team-ch Men 2025"]
[Site "Zhang Jiakou Hebei"]
[Date "2025.04.25"]
[Round "1.32"]
[White "Fang, Zelong"]
[Black "Yu, Zechen"]
[Result "1/2-1/2"]
[Annotator "NA"]
[ECO "C78"]
[WhiteElo "1633"]
[BlackElo "2116"]
[PlyCount "314"]
[EventDate "2025.04.26"]
[EventType "team-tourn"]
[EventCountry "CHN"]
[SourceTitle "playchess.com"]
[Source "ChessBase"]
[SourceQuality "1"]
[TimeControl "5400+30"]

1. e4 {[%emt 0:00:07]} e5 {[%emt 0:00:08]} 2. Nf3 {[%emt 0:00:03]} Nc6 {[%emt 0:00:05]} 3. Bb5 {[%emt 0:00:10]} a6 {[%emt 0:00:11]} 4. Ba4 {[%emt 0:00:05]} Nf6 {[%emt 0:00:11]} 5. O-O {[%emt 0:00:11]} b5 {[%emt 0:00:25]} 6. Bb3 {[%emt 0:00:05]} Bc5 {[%emt 0:00:09]} 7. c3 {[%emt 0:01:15]} d6 {[%emt 0:00:07]} 8. d4 {[%emt 0:00:19]} Bb6 {[%emt 0:00:06]} 9. Bc2 {[%emt 0:04:58]} Bg4 {[%emt 0:07:34]} 10. d5 {[%emt 0:01:20]} Ne7 {[%emt 0:00:33]} 11. Be3 {[%emt 0:03:35]} Ng6 {[%emt 0:05:37]} 12. Nbd2 {[%emt 0:01:49]} O-O {[%emt 0:12:16]} 13. h3 {[%emt 0:01:19]} Bd7 {[%emt 0:01:31]} 14. a4 {[%emt 0:02:01]} c6 {[%emt 0:13:39]} 15. axb5 {[%emt 0:03:17]} Bxe3 {[%emt 0:07:31]} 16. fxe3 {[%emt 0:02:23]} axb5 {[%emt 0:00:21]} 17. dxc6 {[%emt 0:06:23]} Bxc6 {[%emt 0:00:47]} 18. Qe2 {[%emt 0:00:03]} Qb6 {[%emt 0:09:49]} 19. Kh2 {[%emt 0:02:10]} Qb7 {[%emt 0:01:49]} 20. Qd3 {[%emt 0:05:48]} Rfd8 {[%emt 0:02:08]} 21. Rxa8 {[%emt 0:02:32]} Qxa8 {[%emt 0:00:57]} 22. Bb3 {[%emt 0:00:34]} h6 {[%emt 0:04:10]} 23. Ne1 {[%emt 0:04:12]} Rd7 {[%emt 0:05:29]} 24. Qe2 {[%emt 0:02:25]} Nxe4 {[%emt 0:08:37]} 25. Nxe4 {[%emt 0:04:25]} Bxe4 {[%emt 0:00:06]} 26. Qxb5 {[%emt 0:03:31]} Rb7 {[%emt 0:02:07]} 27. Qc4 {[%emt 0:01:12]} d5 {[%emt 0:00:20]} 28. Qc6 {[%emt 0:00:22]} Ne7 {[%emt 0:01:08]} 29. Qc5 {[%emt 0:01:13]} Qc8 {[%emt 0:00:48]} 30. Qa3 {[%emt 0:01:00]} Nf5 {[%emt 0:09:02]} 31. Rxf5 {[%emt 0:09:02]} Bxf5 {[%emt 0:00:08]} 32. Bxd5 {[%emt 0:00:03]} Rd7 {[%emt 0:01:05]} 33. e4 {[%emt 0:01:33]} Be6 {[%emt 0:00:53]} 34. Bxe6 {[%emt 0:03:33]} fxe6 {[%emt 0:00:05]} 35. Nf3 {[%emt 0:00:36]} Qc6 {[%emt 0:01:09]} 36. Qa2 {[%emt 0:01:16]} Kh7 {[%emt 0:02:00]} 37. b4 {[%emt 0:01:44]} Rd3 {[%emt 0:01:42]} 38. Qe2 {[%emt 0:00:42]} Rxc3 {[%emt 0:00:28]} 39. Nxe5 {[%emt 0:00:44]} Qe8 {[%emt 0:02:08]} 40. Nf3 {[%emt 0:01:02]} Qb8+ {[%emt 0:00:31]} 41. e5 {[%emt 0:00:04]} Qxb4 {[%emt 0:00:08]} 42. Qd2 {[%emt 0:01:38]} Qc4 {[%emt 0:00:23]} 43. Ne1 {[%emt 0:01:07]} Rb3 {[%emt 0:00:42]} 44. Nf3 {[%emt 0:00:29]} Qe4 {[%emt 0:00:28]} 45. Qd1 {[%emt 0:00:19]} Qf4+ {[%emt 0:00:09]} 46. Kh1 {[%emt 0:00:14]} Rc3 {[%emt 0:00:41]} 47. Qb1+ {[%emt 0:00:07]} Qf5 {[%emt 0:00:04]} 48. Qd1 {[%emt 0:00:24]} Rxf3 {[%emt 0:02:35]} 49. gxf3 {[%emt 0:00:35]} Qxh3+ {[%emt 0:00:04]} 50. Kg1 {[%emt 0:00:04]} Qg3+ {[%emt 0:00:04]} 51. Kf1 {[%emt 0:00:19]} Qxe5 {[%emt 0:00:10]} 52. Qd7 {[%emt 0:00:22]} Qd5 {[%emt 0:00:24]} 53. Qf7 {[%emt 0:00:21]} Qf5 {[%emt 0:00:04]} 54. Qb7 {[%emt 0:00:04]} e5 {[%emt 0:01:18]} 55. Ke2 {[%emt 0:00:16]} h5 {[%emt 0:00:36]} 56. Qe7 {[%emt 0:00:17]} Qf4 {[%emt 0:00:31]} 57. Qe8 {[%emt 0:00:26]} Qh2+ {[%emt 0:00:46]} 58. Ke3 {[%emt 0:00:05]} Qf4+ {[%emt 0:00:30]} 59. Ke2 {[%emt 0:00:30]} g6 {[%emt 0:00:20]} 60. Qd7+ {[%emt 0:00:27]} Kh6 {[%emt 0:00:07]} 61. Qc8 {[%emt 0:00:07]} Qf6 {[%emt 0:00:38]} 62. Ke3 {[%emt 0:02:04]} Qf4+ {[%emt 0:00:11]} 63. Ke2 {[%emt 0:00:13]} h4 {[%emt 0:00:15]} 64. Qh8+ {[%emt 0:00:32]} Kg5 {[%emt 0:00:07]} 65. Qd8+ {[%emt 0:00:11]} Qf6 {[%emt 0:00:03]} 66. Qc8 {[%emt 0:00:09]} Kh5 {[%emt 0:00:50]} 67. Qg8 {[%emt 0:00:47]} Qa6+ {[%emt 0:00:14]} 68. Ke3 {[%emt 0:01:07]} Qb6+ {[%emt 0:00:22]} 69. Ke2 {[%emt 0:00:11]} Kg5 {[%emt 0:01:07]} 70. Qh7 {[%emt 0:00:35]} Qb2+ {[%emt 0:00:20]} 71. Ke3 {[%emt 0:00:41]} Qd4+ {[%emt 0:00:31]} 72. Ke2 {[%emt 0:00:06]} Qc4+ {[%emt 0:00:20]} 73. Ke3 {[%emt 0:00:07]} Qc5+ {[%emt 0:00:05]} 74. Ke2 {[%emt 0:00:06]} Qf8 {[%emt 0:00:32]} 75. Qd7 {[%emt 0:00:33]} Qf5 {[%emt 0:00:26]} 76. Qd8+ {[%emt 0:00:12]} Qf6 {[%emt 0:00:04]} 77. Qd7 {[%emt 0:00:09]} Kh6 {[%emt 0:00:39]} 78. Qc8 {[%emt 0:00:33]} Qd6 {[%emt 0:02:00]} 79. Qh8+ {[%emt 0:00:38]} Kg5 {[%emt 0:00:06]} 80. Qc8 {[%emt 0:00:04]} Qd4 {[%emt 0:00:09]} 81. Qc1+ {[%emt 0:00:32]} Kf5 {[%emt 0:01:48]} 82. Qc8+ {[%emt 0:00:12]} Kf6 {[%emt 0:01:36]} 83. Qf8+ {[%emt 0:01:28]} Ke6 {[%emt 0:00:47]} 84. Qg8+ {[%emt 0:01:46]} Kf6 {[%emt 0:00:06]} 85. Qf8+ {[%emt 0:00:04]} Kg5 {[%emt 0:00:15]} 86. Qe7+ {[%emt 0:00:07]} Kh6 {[%emt 0:00:08]} 87. Qf8+ {[%emt 0:01:38]} Kh5 {[%emt 0:00:09]} 88. Qh8+ {[%emt 0:01:07]} Kg5 {[%emt 0:00:00]} 89. Qc8 {[%emt 0:00:14]} Qb2+ {[%emt 0:00:10]} 90. Ke3 {[%emt 0:00:10]} Qb6+ {[%emt 0:00:26]} 91. Ke2 {[%emt 0:00:06]} Qb2+ {[%emt 0:01:57]} 92. Ke3 {[%emt 0:00:04]} Qa3+ {[%emt 0:00:10]} 93. Ke2 {[%emt 0:00:05]} Qb4 {[%emt 0:01:49]} 94. Qd8+ {[%emt 0:00:29]} Kf5 {[%emt 0:00:05]} 95. Qc8+ {[%emt 0:00:56]} Kf6 {[%emt 0:00:12]} 96. Qh8+ {[%emt 0:00:33]} Ke6 {[%emt 0:00:24]} 97. Qg8+ {[%emt 0:00:26]} Kf5 {[%emt 0:00:32]} 98. Qc8+ {[%emt 0:00:11]} Kf6 {[%emt 0:00:23]} 99. Qh8+ {[%emt 0:00:13]} Ke6 {[%emt 0:00:08]} 100. Qg8+ {[%emt 0:00:04]} Kd7 {[%emt 0:00:43]} 101. Qxg6 {[%emt 0:00:33]} Qb2+ {[%emt 0:00:11]} 102. Ke3 {[%emt 0:00:05]} Qd4+ {[%emt 0:00:06]} 103. Ke2 {[%emt 0:00:04]} Qc4+ {[%emt 0:00:14]} 104. Ke3 {[%emt 0:00:35]} Qf4+ {[%emt 0:00:06]} 105. Ke2 {[%emt 0:00:05]} Qh2+ {[%emt 0:00:32]} 106. Ke3 {[%emt 0:00:09]} Qf4+ {[%emt 0:00:24]} 107. Ke2 {[%emt 0:00:04]} Ke7 {[%emt 0:00:10]} 108. Qg7+ {[%emt 0:00:22]} Kd6 {[%emt 0:00:01]} 109. Qg6+ {[%emt 0:00:41]} Kc5 {[%emt 0:00:05]} 110. Qh7 {[%emt 0:00:20]} Qh2+ {[%emt 0:00:30]} 111. Ke3 {[%emt 0:01:45]} Qg1+ {[%emt 0:00:54]} 112. Ke2 {[%emt 0:00:04]} Qg2+ {[%emt 0:00:04]} 113. Ke3 {[%emt 0:00:02]} Qg5+ {[%emt 0:00:26]} 114. Ke2 {[%emt 0:00:05]} Qf6 {[%emt 0:00:38]} 115. Qc7+ {[%emt 0:02:07]} Kd5 {[%emt 0:00:15]} 116. Qd7+ {[%emt 0:00:38]} Qd6 {[%emt 0:00:13]} 117. Qb5+ {[%emt 0:01:41]} Qc5 {[%emt 0:00:32]} 118. Qd3+ {[%emt 0:01:17]} Qd4 {[%emt 0:01:42]} 119. Qb5+ {[%emt 0:00:04]} Kd6 {[%emt 0:00:25]} 120. Qb8+ {[%emt 0:00:31]} Kc5 {[%emt 0:00:15]} 121. Qf8+ {[%emt 0:01:07]} Kc4 {[%emt 0:00:24]} 122. Qf5 {[%emt 0:03:25]} Kc3 {[%emt 0:00:31]} 123. Qh5 {[%emt 0:01:36]} Qd2+ {[%emt 0:00:58]} 124. Kf1 {[%emt 0:00:02]} Qh2 {[%emt 0:00:45]} 125. Qh8 {[%emt 0:01:17]} h3 {[%emt 0:01:48]} 126. Qc8+ {[%emt 0:00:10]} Kd2 {[%emt 0:00:36]} 127. Qd8+ {[%emt 0:01:50]} Ke3 {[%emt 0:00:14]} 128. Qb6+ {[%emt 0:00:03]} Kxf3 {[%emt 0:01:25]} 129. Qb3+ {[%emt 0:00:06]} Kg4 {[%emt 0:00:52]} 130. Qg8+ {[%emt 0:00:04]} Kf4 {[%emt 0:00:14]} 131. Qf7+ {[%emt 0:00:05]} Ke4 {[%emt 0:00:12]} 132. Qc4+ {[%emt 0:01:39]} Ke3 {[%emt 0:00:09]} 133. Qb3+ {[%emt 0:00:15]} Ke4 {[%emt 0:00:23]} 134. Qc4+ {[%emt 0:00:03]} Kf3 {[%emt 0:00:11]} 135. Qb3+ {[%emt 0:00:09]} Kf4 {[%emt 0:00:09]} 136. Qf7+ {[%emt 0:00:10]} Kg5 {[%emt 0:00:08]} 137. Qg8+ {[%emt 0:00:26]} Kh4 {[%emt 0:00:06]} 138. Qh8+ {[%emt 0:00:21]} Kg4 {[%emt 0:00:05]} 139. Qg8+ {[%emt 0:00:04]} Kf5 {[%emt 0:00:20]} 140. Qf7+ {[%emt 0:00:06]} Ke4 {[%emt 0:00:19]} 141. Qc4+ {[%emt 0:00:12]} Ke3 {[%emt 0:00:22]} 142. Qb3+ {[%emt 0:00:34]} Kd4 {[%emt 0:00:01]} 143. Qb4+ {[%emt 0:00:21]} Kd5 {[%emt 0:00:04]} 144. Qb5+ {[%emt 0:00:28]} Kd6 {[%emt 0:00:06]} 145. Qb6+ {[%emt 0:00:17]} Ke7 {[%emt 0:00:06]} 146. Qc7+ {[%emt 0:00:39]} Kf6 {[%emt 0:00:03]} 147. Qd8+ {[%emt 0:00:07]} Kf5 {[%emt 0:00:09]} 148. Qf8+ {[%emt 0:00:11]} Ke4 {[%emt 0:00:18]} 149. Qb4+ {[%emt 0:00:11]} Kd5 {[%emt 0:00:42]} 150. Qb5+ {[%emt 0:00:10]} Ke6 {[%emt 0:00:11]} 151. Qc6+ {[%emt 0:00:04]} Kf5 {[%emt 0:00:11]} 152. Qc8+ {[%emt 0:00:54]} Kf4 {[%emt 0:00:15]} 153. Qc4+ {[%emt 0:00:25]} Kg3 {[%emt 0:00:25]} 154. Qg8+ {[%emt 0:00:13]} Kh4 {[%emt 0:00:08]} 155. Qh7+ {[%emt 0:00:17]} Kg5 {[%emt 0:00:15]} 156. Qg8+ {[%emt 0:00:13]} Kf4 {[%emt 0:00:04]} 157. Qc4+ {[%emt 0:00:05]} Ke3 {[%emt 0:00:04]} 1/2-1/2

[Event "Chinese Team-ch Men 2025"]
[Site "Zhang Jiakou Hebei"]
[Date "2025.04.25"]
[Round "1.33"]
[White "Fan, Yupan"]
[Black "Yu, Shaoteng"]
[Result "0-1"]
[Annotator "ChessBase"]
[ECO "C01"]
[WhiteElo "1527"]
[BlackElo "2480"]
[PlyCount "74"]
[EventDate "2025.04.26"]
[EventType "team-tourn"]
[EventCountry "CHN"]
[SourceTitle "playchess.com"]
[Source "ChessBase"]
[SourceQuality "1"]
[TimeControl "5400+30"]

1. d4 {[%emt 0:00:09]} e6 {[%emt 0:00:22]} 2. e4 {[%emt 0:00:17]} d5 {[%emt 0:00:08]} 3. exd5 {[%emt 0:00:20]} exd5 {[%emt 0:00:11]} 4. Bd3 {[%emt 0:00:27]} c5 {[%emt 0:01:58]} 5. c3 {[%emt 0:04:02]} Nc6 {[%emt 0:00:51]} 6. Ne2 {[%emt 0:01:04]} Bd6 {[%emt 0:01:40]} 7. Be3 {[%emt 0:01:27]} c4 {[%emt 0:01:11]} 8. Bc2 {[%emt 0:00:27]} Nf6 {[%emt 0:00:04]} 9. O-O {[%emt 0:01:44]} O-O {[%emt 0:00:48]} 10. Bf4 {[%emt 0:03:52]} Bg4 {[%emt 0:00:56]} 11. f3 {[%emt 0:02:36]} Bh5 {[%emt 0:00:49]} 12. Bxd6 {[%emt 0:01:11]} Qxd6 {[%emt 0:00:02]} 13. Ng3 {[%emt 0:00:53]} Rfe8 {[%emt 0:02:13]} 14. Nd2 {[%emt 0:08:29]} b5 {[%emt 0:04:36]} 15. a3 {[%emt 0:02:00]} a5 {[%emt 0:00:29]} 16. Kh1 {[%emt 0:07:51]} b4 {[%emt 0:00:43]} 17. Ba4 {[%emt 0:01:32]} Bg6 {[%emt 0:02:27]} 18. Bc2 {[%emt 0:13:21]} bxc3 {[%emt 0:10:51]} 19. bxc3 {[%emt 0:00:17]} Re3 {[%emt 0:00:12]} 20. Bxg6 {[%emt 0:01:03]} hxg6 {[%emt 0:00:05]} 21. Qc2 {[%emt 0:01:28]} Nh5 {[%emt 0:02:33]} 22. Nxh5 {[%emt 0:06:31]} gxh5 {[%emt 0:00:01]} 23. Rfb1 {[%emt 0:00:34]} Rae8 {[%emt 0:01:29]} 24. Nf1 {[%emt 0:05:49]} Re2 {[%emt 0:02:00]} 25. Qf5 {[%emt 0:00:43]} h4 {[%emt 0:01:26]} 26. Rb7 {[%emt 0:01:20]} R8e7 {[%emt 0:04:04]} 27. Rb6 {[%emt 0:02:14]} R7e6 {[%emt 0:02:35]} 28. Rab1 {[%emt 0:02:43]} Re1 {[%emt 0:11:14]} 29. Rxe1 {[%emt 0:01:23]} Rxe1 {[%emt 0:00:05]} 30. Kg1 {[%emt 0:00:29]} Qe7 {[%emt 0:00:41]} 31. Rb2 {[%emt 0:01:41]} Qe3+ {[%emt 0:01:47]} 32. Rf2 {[%emt 0:00:19]} Ne7 {[%emt 0:00:26]} 33. Qc2 {[%emt 0:02:01]} Rc1 {[%emt 0:03:08]} 34. Qa4 {[%emt 0:00:48]} Ng6 {[%emt 0:10:36]} 35. Qxa5 {[%emt 0:15:01]} Rxf1+ {[%emt 0:00:28]} 36. Kxf1 {[%emt 0:02:15]} Qc1+ {[%emt 0:00:08]} 37. Ke2 {[%emt 0:00:02]} Nf4# {[%emt 0:00:06]} 0-1